[Event "January 2 Late 2024"]
[Site "https://www.chess.com"]
[Date "2024.01.02"]
[Round "2"]
[White "Zakarian, David"]
[Black "Schnaider, Ilan"]
[Result "1-0"]
[Board "90"]
[TimeControl "180+1"]
[WhiteFideId "13301276"]
[BlackFideId "169013"]
[WhiteElo "2386"]
[BlackElo "2728"]
[WhiteTeam "ARM"]
[BlackTeam "ARG"]
[WhiteClock "0:00:09"]
[BlackClock "0:00:00"]

1. d4 {[%clk 0:03:00]}  Nf6 {[%clk 0:02:55]} 2. c4 {[%clk 0:03:01]}  g6 {[%clk 0:02:55]} 3. h4 {[%clk 0:03:01]}  c6 {[%clk 0:02:51]} 4. Nc3 {[%clk 0:02:57]}  d5 {[%clk 0:02:51]} 5. Bg5 {[%clk 0:02:51]}  Bg7 {[%clk 0:02:50]} 6. Nf3 {[%clk 0:02:46]}  Bf5 {[%clk 0:02:47]} 7. e3 {[%clk 0:02:36]}  dxc4 {[%clk 0:02:39]} 8. Bxc4 {[%clk 0:02:35]}  b5 {[%clk 0:02:40]} 9. Bd3 {[%clk 0:02:34]}  Bxd3 {[%clk 0:02:37]} 10. Qxd3 {[%clk 0:02:35]}  Nbd7 {[%clk 0:02:37]} 11. O-O {[%clk 0:02:32]}  O-O {[%clk 0:02:35]} 12. e4 {[%clk 0:02:31]}  b4 {[%clk 0:02:35]} 13. Na4 {[%clk 0:02:26]}  Qa5 {[%clk 0:02:23]} 14. b3 {[%clk 0:02:21]}  Rfd8 {[%clk 0:02:13]} 15. Rac1 {[%clk 0:02:02]}  Rac8 {[%clk 0:02:08]} 16. Rfd1 {[%clk 0:01:59]}  c5 {[%clk 0:01:57]} 17. d5 {[%clk 0:01:56]}  Nb6 {[%clk 0:01:32]} 18. Nxb6 {[%clk 0:01:25]}  axb6 {[%clk 0:01:33]} 19. Bxf6 {[%clk 0:01:20]}  Bxf6 {[%clk 0:01:29]} 20. e5 {[%clk 0:01:19]}  Bg7 {[%clk 0:01:29]} 21. Qe2 {[%clk 0:01:18]}  b5 {[%clk 0:01:24]} 22. e6 {[%clk 0:00:51]}  f6 {[%clk 0:01:06]} 23. h5 {[%clk 0:00:50]}  g5 {[%clk 0:00:57]} 24. Nh2 {[%clk 0:00:33]}  Qa6 {[%clk 0:00:49]} 25. Ng4 {[%clk 0:00:27]}  f5 {[%clk 0:00:49]} 26. Ne5 {[%clk 0:00:26]}  h6 {[%clk 0:00:22]} 27. Nf7 {[%clk 0:00:23]}  Rf8 {[%clk 0:00:20]} 28. d6 {[%clk 0:00:20]}  exd6 {[%clk 0:00:17]} 29. Nxd6 {[%clk 0:00:21]}  Rcd8 {[%clk 0:00:12]} 30. e7 {[%clk 0:00:19]}  Rxd6 {[%clk 0:00:12]} 31. exf8=Q+ {[%clk 0:00:18]}  Bxf8 {[%clk 0:00:12]} 32. Rxd6 {[%clk 0:00:16]}  Qxd6 {[%clk 0:00:13]} 33. Qxb5 {[%clk 0:00:16]}  Qd2 {[%clk 0:00:10]} 34. Qc4+ {[%clk 0:00:16]}  Kg7 {[%clk 0:00:08]} 35. Rc2 {[%clk 0:00:15]}  Qd1+ {[%clk 0:00:08]} 36. Kh2 {[%clk 0:00:16]}  Bd6+ {[%clk 0:00:07]} 37. g3 {[%clk 0:00:16]}  Qxh5+ {[%clk 0:00:08]} 38. Kg2 {[%clk 0:00:15]}  f4 {[%clk 0:00:08]} 39. Qe2 {[%clk 0:00:12]}  Qg6 {[%clk 0:00:06]} 40. Rd2 {[%clk 0:00:12]}  g4 {[%clk 0:00:05]} 41. gxf4 {[%clk 0:00:11]}  h5 {[%clk 0:00:03]} 42. Qd3 {[%clk 0:00:09]}  Qxd3 {[%clk 0:00:02]} 43. Rxd3 {[%clk 0:00:10]}  Bxf4 {[%clk 0:00:03]} 44. Rd7+ {[%clk 0:00:10]}  Kf6 {[%clk 0:00:03]} 45. Rd5 {[%clk 0:00:10]}  h4 {[%clk 0:00:03]} 46. Rxc5 {[%clk 0:00:10]}  h3+ {[%clk 0:00:04]} 47. Kf1 {[%clk 0:00:10]}  Bd2 {[%clk 0:00:03]} 48. Rc4 {[%clk 0:00:10]}  Kg5 {[%clk 0:00:02]} 49. Kg1 {[%clk 0:00:08]}  Kh4 {[%clk 0:00:02]} 50. Rc2 {[%clk 0:00:07]}  Be1 {[%clk 0:00:01]} 51. Rc4 {[%clk 0:00:07]}  Kg5 {[%clk 0:00:01]} 52. Rc5+ {[%clk 0:00:06]}  Kh4 {[%clk 0:00:02]} 53. Ra5 {[%clk 0:00:07]}  Bd2 {[%clk 0:00:01]} 54. a3 {[%clk 0:00:07]}  bxa3 {[%clk 0:00:01]} 55. Rxa3 {[%clk 0:00:08]}  Bc1 {[%clk 0:00:02]} 56. Ra8 {[%clk 0:00:08]}  Bf4 {[%clk 0:00:02]} 57. Ra4 {[%clk 0:00:08]}  Bd2 {[%clk 0:00:02]} 58. f3 {[%clk 0:00:08]}  Kg3 {[%clk 0:00:02]} 59. fxg4 {[%clk 0:00:08]}  Be3+ {[%clk 0:00:03]} 60. Kh1 {[%clk 0:00:08]}  Bd2 {[%clk 0:00:02]} 61. Rd4 {[%clk 0:00:08]}  Bc3 {[%clk 0:00:02]} 62. Rd3+ {[%clk 0:00:08]}  Kxg4 {[%clk 0:00:00]} 63. Rxc3 {[%clk 0:00:09]} 1-0

[Event "January 2 Late 2024"]
[Site "https://www.chess.com"]
[Date "2024.01.02"]
[Round "2"]
[White "Yarar, Bora"]
[Black "Figorito, Nick"]
[Result "1-0"]
[Board "91"]
[TimeControl "180+1"]
[WhiteFideId "34588400"]
[BlackFideId "30923689"]
[WhiteElo "2723"]
[BlackElo "2378"]
[WhiteTeam "TUR"]
[BlackTeam "USA"]
[WhiteClock "0:02:13"]
[BlackClock "0:00:28"]

1. e4 {[%clk 0:03:00]}  e6 {[%clk 0:03:00]} 2. d4 {[%clk 0:03:00]}  d5 {[%clk 0:03:00]} 3. e5 {[%clk 0:03:01]}  c5 {[%clk 0:03:00]} 4. c3 {[%clk 0:03:02]}  Bd7 {[%clk 0:03:00]} 5. Nf3 {[%clk 0:03:03]}  Qb6 {[%clk 0:03:00]} 6. Na3 {[%clk 0:03:03]}  cxd4 {[%clk 0:03:00]} 7. cxd4 {[%clk 0:03:04]}  Bxa3 {[%clk 0:03:00]} 8. bxa3 {[%clk 0:03:04]}  Ne7 {[%clk 0:02:53]} 9. Bd3 {[%clk 0:03:04]}  Nbc6 {[%clk 0:02:24]} 10. Rb1 {[%clk 0:03:00]}  Qa5+ {[%clk 0:02:21]} 11. Kf1 {[%clk 0:03:00]}  Qc7 {[%clk 0:02:17]} 12. g3 {[%clk 0:02:52]}  h6 {[%clk 0:02:16]} 13. Kg2 {[%clk 0:02:51]}  O-O {[%clk 0:02:16]} 14. a4 {[%clk 0:02:50]}  Rfc8 {[%clk 0:02:15]} 15. h4 {[%clk 0:02:48]}  Na5 {[%clk 0:02:14]} 16. Ba3 {[%clk 0:02:44]}  Bc6 {[%clk 0:01:52]} 17. Bd6 {[%clk 0:02:42]}  Qd7 {[%clk 0:01:52]} 18. Bc2 {[%clk 0:02:42]}  Nc4 {[%clk 0:01:52]} 19. Qd3 {[%clk 0:02:36]}  g6 {[%clk 0:01:35]} 20. Bxe7 {[%clk 0:02:27]}  Qxe7 {[%clk 0:01:34]} 21. h5 {[%clk 0:02:28]}  Na3 {[%clk 0:01:07]} 22. hxg6 {[%clk 0:02:23]}  Nxb1 {[%clk 0:00:28]} 23. g7 {[%clk 0:02:13]} 1-0

[Event "January 2 Late 2024"]
[Site "https://www.chess.com"]
[Date "2024.01.02"]
[Round "2"]
[White "Bregu, Riza"]
[Black "Rastbod, Ali"]
[Result "0-1"]
[Board "92"]
[TimeControl "180+1"]
[WhiteFideId "4701739"]
[BlackFideId "12567477"]
[WhiteElo "2377"]
[BlackElo "2722"]
[WhiteTeam "ALB"]
[BlackTeam "IRI"]
[WhiteClock "0:00:18"]
[BlackClock "0:00:30"]

1. e4 {[%clk 0:03:00]}  c6 {[%clk 0:02:57]} 2. Nc3 {[%clk 0:03:00]}  d5 {[%clk 0:02:57]} 3. Nf3 {[%clk 0:03:01]}  Bg4 {[%clk 0:02:56]} 4. h3 {[%clk 0:03:01]}  Bxf3 {[%clk 0:02:56]} 5. Qxf3 {[%clk 0:03:01]}  e6 {[%clk 0:02:57]} 6. d4 {[%clk 0:03:01]}  Bb4 {[%clk 0:02:55]} 7. Bd3 {[%clk 0:03:00]}  Nf6 {[%clk 0:02:20]} 8. O-O {[%clk 0:02:50]}  Bxc3 {[%clk 0:02:07]} 9. bxc3 {[%clk 0:02:51]}  dxe4 {[%clk 0:02:08]} 10. Bxe4 {[%clk 0:02:52]}  Nxe4 {[%clk 0:02:09]} 11. Qxe4 {[%clk 0:02:52]}  Qd5 {[%clk 0:02:05]} 12. Qg4 {[%clk 0:02:47]}  Nd7 {[%clk 0:01:39]} 13. Rb1 {[%clk 0:02:45]}  Nf6 {[%clk 0:01:28]} 14. Qxg7 {[%clk 0:02:37]}  Rg8 {[%clk 0:01:28]} 15. c4 {[%clk 0:02:29]}  Qe4 {[%clk 0:01:16]} 16. Qxg8+ {[%clk 0:02:23]}  Nxg8 {[%clk 0:01:14]} 17. Rxb7 {[%clk 0:02:24]}  Qxd4 {[%clk 0:00:53]} 18. Be3 {[%clk 0:02:17]}  Qxc4 {[%clk 0:00:53]} 19. Rd1 {[%clk 0:02:14]}  Nf6 {[%clk 0:00:52]} 20. Rd4 {[%clk 0:01:53]}  Qa6 {[%clk 0:00:43]} 21. Rb3 {[%clk 0:01:38]}  Qxa2 {[%clk 0:00:39]} 22. Rh4 {[%clk 0:01:14]}  Qxc2 {[%clk 0:00:37]} 23. Rb7 {[%clk 0:01:13]}  Nd5 {[%clk 0:00:31]} 24. Rg4 {[%clk 0:00:56]}  O-O-O {[%clk 0:00:31]} 25. Rxa7 {[%clk 0:00:38]}  Qb1+ {[%clk 0:00:30]} 26. Kh2 {[%clk 0:00:34]}  Nxe3 {[%clk 0:00:28]} 27. Rga4 {[%clk 0:00:18]}  Nf1+ {[%clk 0:00:23]} 28. Kg1 {[%clk 0:00:19]}  Nd2+ {[%clk 0:00:24]} 29. Kh2 {[%clk 0:00:19]}  Qb8+ {[%clk 0:00:19]} 30. g3 {[%clk 0:00:18]}  Nf3+ {[%clk 0:00:18]} 31. Kg2 {[%clk 0:00:19]}  Ne1+ {[%clk 0:00:18]} 32. Kf1 {[%clk 0:00:19]}  Nd3 {[%clk 0:00:19]} 33. Ra8 {[%clk 0:00:19]}  Nc5 {[%clk 0:00:19]} 34. Rxb8+ {[%clk 0:00:19]}  Kxb8 {[%clk 0:00:20]} 35. Rc4 {[%clk 0:00:19]}  Rd5 {[%clk 0:00:20]} 36. Kg2 {[%clk 0:00:19]}  Kc7 {[%clk 0:00:21]} 37. Rh4 {[%clk 0:00:19]}  h5 {[%clk 0:00:22]} 38. g4 {[%clk 0:00:19]}  hxg4 {[%clk 0:00:23]} 39. hxg4 {[%clk 0:00:20]}  Nd3 {[%clk 0:00:23]} 40. Rh5 {[%clk 0:00:18]}  Rxh5 {[%clk 0:00:22]} 41. g5 {[%clk 0:00:19]}  Rxg5+ {[%clk 0:00:23]} 42. Kf3 {[%clk 0:00:19]}  Rd5 {[%clk 0:00:24]} 43. Ke4 {[%clk 0:00:18]}  c5 {[%clk 0:00:24]} 44. f4 {[%clk 0:00:18]}  c4 {[%clk 0:00:25]} 45. f5 {[%clk 0:00:19]}  c3 {[%clk 0:00:24]} 46. fxe6 {[%clk 0:00:17]}  fxe6 {[%clk 0:00:25]} 47. Kf3 {[%clk 0:00:17]}  c2 {[%clk 0:00:26]} 48. Ke4 {[%clk 0:00:17]}  c1=Q {[%clk 0:00:26]} 49. Kf3 {[%clk 0:00:18]}  Qf4+ {[%clk 0:00:27]} 50. Ke2 {[%clk 0:00:18]}  Nc1+ {[%clk 0:00:27]} 51. Ke1 {[%clk 0:00:18]}  Re5+ {[%clk 0:00:28]} 52. Kd1 {[%clk 0:00:18]}  Qd4+ {[%clk 0:00:28]} 53. Kc2 {[%clk 0:00:19]}  Rc5+ {[%clk 0:00:29]} 54. Kb1 {[%clk 0:00:19]}  Qb4+ {[%clk 0:00:29]} 55. Ka1 {[%clk 0:00:18]}  Ra5# {[%clk 0:00:30]} 0-1

[Event "January 2 Late 2024"]
[Site "https://www.chess.com"]
[Date "2024.01.02"]
[Round "2"]
[White "Gerbelli Neto, Eduardo"]
[Black "Carlsson, Ludvig"]
[Result "0-1"]
[Board "94"]
[TimeControl "180+1"]
[WhiteFideId "2103281"]
[BlackFideId "1727010"]
[WhiteElo "2350"]
[BlackElo "2720"]
[WhiteTeam "BRA"]
[BlackTeam "SWE"]
[WhiteClock "0:00:15"]
[BlackClock "0:01:36"]

1. e4 {[%clk 0:03:00]}  e5 {[%clk 0:02:58]} 2. Nf3 {[%clk 0:03:00]}  Nc6 {[%clk 0:02:59]} 3. d4 {[%clk 0:03:00]}  exd4 {[%clk 0:02:59]} 4. Nxd4 {[%clk 0:03:00]}  Nf6 {[%clk 0:02:59]} 5. Nxc6 {[%clk 0:02:59]}  bxc6 {[%clk 0:02:59]} 6. e5 {[%clk 0:02:59]}  Qe7 {[%clk 0:02:59]} 7. Qe2 {[%clk 0:03:00]}  Nd5 {[%clk 0:02:59]} 8. c4 {[%clk 0:03:00]}  Ba6 {[%clk 0:02:59]} 9. h4 {[%clk 0:02:58]}  f6 {[%clk 0:02:57]} 10. exf6 {[%clk 0:02:48]}  Nxf6 {[%clk 0:02:55]} 11. Rh3 {[%clk 0:02:40]}  Qxe2+ {[%clk 0:02:53]} 12. Bxe2 {[%clk 0:02:40]}  Bd6 {[%clk 0:02:45]} 13. Re3+ {[%clk 0:02:27]}  Kf7 {[%clk 0:02:45]} 14. Nc3 {[%clk 0:02:25]}  Rhe8 {[%clk 0:02:43]} 15. Rxe8 {[%clk 0:02:21]}  Rxe8 {[%clk 0:02:44]} 16. Be3 {[%clk 0:02:21]}  Ne4 {[%clk 0:02:41]} 17. O-O-O {[%clk 0:02:01]}  Nxc3 {[%clk 0:02:38]} 18. bxc3 {[%clk 0:02:02]}  c5 {[%clk 0:02:17]} 19. h5 {[%clk 0:01:01]}  Bb7 {[%clk 0:02:13]} 20. Bf3 {[%clk 0:00:54]}  Bxf3 {[%clk 0:02:12]} 21. gxf3 {[%clk 0:00:55]}  Re5 {[%clk 0:02:11]} 22. h6 {[%clk 0:00:54]}  gxh6 {[%clk 0:02:08]} 23. Bxh6 {[%clk 0:00:53]}  Re2 {[%clk 0:02:08]} 24. Rd2 {[%clk 0:00:48]}  Rxd2 {[%clk 0:02:08]} 25. Kxd2 {[%clk 0:00:49]}  Kg6 {[%clk 0:02:08]} 26. Be3 {[%clk 0:00:47]}  h5 {[%clk 0:02:08]} 27. Ke2 {[%clk 0:00:47]}  Kf5 {[%clk 0:02:08]} 28. Kf1 {[%clk 0:00:43]}  Be7 {[%clk 0:02:06]} 29. Kg2 {[%clk 0:00:41]}  d6 {[%clk 0:02:06]} 30. Bh6 {[%clk 0:00:32]}  Bf6 {[%clk 0:02:06]} 31. Bd2 {[%clk 0:00:31]}  a6 {[%clk 0:02:02]} 32. Kh3 {[%clk 0:00:30]}  Bg5 {[%clk 0:01:50]} 33. Be1 {[%clk 0:00:30]}  c6 {[%clk 0:01:42]} 34. a4 {[%clk 0:00:29]}  d5 {[%clk 0:01:42]} 35. cxd5 {[%clk 0:00:30]}  cxd5 {[%clk 0:01:43]} 36. Kg3 {[%clk 0:00:24]}  Bf4+ {[%clk 0:01:32]} 37. Kh4 {[%clk 0:00:24]}  d4 {[%clk 0:01:32]} 38. cxd4 {[%clk 0:00:23]}  cxd4 {[%clk 0:01:33]} 39. Kxh5 {[%clk 0:00:20]}  d3 {[%clk 0:01:34]} 40. Kh4 {[%clk 0:00:16]}  d2 {[%clk 0:01:34]} 41. Bxd2 {[%clk 0:00:17]}  Bxd2 {[%clk 0:01:35]} 42. Kg3 {[%clk 0:00:18]}  a5 {[%clk 0:01:35]} 43. f4 {[%clk 0:00:18]}  Bxf4+ {[%clk 0:01:35]} 44. Kf3 {[%clk 0:00:18]}  Bd2 {[%clk 0:01:36]} 45. Ke2 {[%clk 0:00:18]}  Bb4 {[%clk 0:01:36]} 46. Kd3 {[%clk 0:00:15]}  Kf4 {[%clk 0:01:36]} 0-1

[Event "January 2 Late 2024"]
[Site "https://www.chess.com"]
[Date "2024.01.02"]
[Round "2"]
[White "Mazzilli, Piero"]
[Black "Syaputra, Arifa Rizki"]
[Result "1/2-1/2"]
[Board "96"]
[TimeControl "180+1"]
[WhiteFideId "807087"]
[BlackFideId "7105100"]
[WhiteElo "2331"]
[BlackElo "2716"]
[WhiteTeam "ITA"]
[BlackTeam "INA"]
[WhiteClock "0:00:12"]
[BlackClock "0:00:09"]

1. e4 {[%clk 0:03:00]}  c5 {[%clk 0:02:55]} 2. Nf3 {[%clk 0:03:00]}  Nc6 {[%clk 0:02:56]} 3. c3 {[%clk 0:03:00]}  d5 {[%clk 0:02:52]} 4. exd5 {[%clk 0:03:01]}  Qxd5 {[%clk 0:02:53]} 5. d4 {[%clk 0:03:02]}  Nf6 {[%clk 0:02:52]} 6. Be2 {[%clk 0:03:01]}  e6 {[%clk 0:02:51]} 7. O-O {[%clk 0:03:01]}  cxd4 {[%clk 0:02:47]} 8. cxd4 {[%clk 0:03:01]}  Be7 {[%clk 0:02:47]} 9. Nc3 {[%clk 0:03:01]}  Qd8 {[%clk 0:02:47]} 10. Bf4 {[%clk 0:02:53]}  O-O {[%clk 0:02:37]} 11. Rc1 {[%clk 0:02:52]}  b6 {[%clk 0:02:30]} 12. Nb5 {[%clk 0:02:22]}  Bb7 {[%clk 0:02:29]} 13. Bc7 {[%clk 0:02:19]}  Qd7 {[%clk 0:02:21]} 14. Ne5 {[%clk 0:02:13]}  Nxe5 {[%clk 0:02:17]} 15. dxe5 {[%clk 0:02:14]}  Nd5 {[%clk 0:02:15]} 16. Bd6 {[%clk 0:02:09]}  Rac8 {[%clk 0:01:29]} 17. Rxc8 {[%clk 0:01:48]}  Rxc8 {[%clk 0:01:20]} 18. Nxa7 {[%clk 0:01:39]}  Ra8 {[%clk 0:00:55]} 19. Bb5 {[%clk 0:01:34]}  Qd8 {[%clk 0:00:55]} 20. Nc6 {[%clk 0:01:30]}  Bxc6 {[%clk 0:00:48]} 21. Bxc6 {[%clk 0:01:29]}  Rxa2 {[%clk 0:00:49]} 22. Bxd5 {[%clk 0:01:23]}  exd5 {[%clk 0:00:46]} 23. Bxe7 {[%clk 0:01:07]}  Qxe7 {[%clk 0:00:45]} 24. Qxd5 {[%clk 0:01:08]}  Rxb2 {[%clk 0:00:45]} 25. Rc1 {[%clk 0:00:54]}  g6 {[%clk 0:00:38]} 26. Qd4 {[%clk 0:00:47]}  Rb4 {[%clk 0:00:31]} 27. Qe3 {[%clk 0:00:27]}  Kg7 {[%clk 0:00:24]} 28. g3 {[%clk 0:00:25]}  Rb5 {[%clk 0:00:20]} 29. f4 {[%clk 0:00:23]}  Qe6 {[%clk 0:00:15]} 30. Kg2 {[%clk 0:00:15]}  Rb2+ {[%clk 0:00:15]} 31. Kg1 {[%clk 0:00:14]}  Qh3 {[%clk 0:00:12]} 32. Qf3 {[%clk 0:00:09]}  Qxh2+ {[%clk 0:00:11]} 33. Kf1 {[%clk 0:00:10]}  Qh3+ {[%clk 0:00:09]} 34. Kg1 {[%clk 0:00:09]}  Qh2+ {[%clk 0:00:06]} 35. Kf1 {[%clk 0:00:09]}  Rc2 {[%clk 0:00:03]} 36. Rd1 {[%clk 0:00:07]}  Rd2 {[%clk 0:00:03]} 37. Rc1 {[%clk 0:00:08]}  Qh3+ {[%clk 0:00:04]} 38. Kg1 {[%clk 0:00:08]}  Qh2+ {[%clk 0:00:03]} 39. Kf1 {[%clk 0:00:08]}  Qh5 {[%clk 0:00:03]} 40. Qxh5 {[%clk 0:00:08]}  gxh5 {[%clk 0:00:04]} 41. Rb1 {[%clk 0:00:08]}  h4 {[%clk 0:00:01]} 42. gxh4 {[%clk 0:00:09]}  Rd4 {[%clk 0:00:01]} 43. Rxb6 {[%clk 0:00:10]}  Rxf4+ {[%clk 0:00:02]} 44. Kg2 {[%clk 0:00:10]}  Rxh4 {[%clk 0:00:03]} 45. Kg3 {[%clk 0:00:11]}  Re4 {[%clk 0:00:03]} 46. Rb5 {[%clk 0:00:12]}  Kg6 {[%clk 0:00:04]} 47. Kf3 {[%clk 0:00:13]}  Rc4 {[%clk 0:00:03]} 48. Rb6+ {[%clk 0:00:12]}  Kg7 {[%clk 0:00:04]} 49. Rb5 {[%clk 0:00:12]}  Ra4 {[%clk 0:00:04]} 50. Kg3 {[%clk 0:00:12]}  Kg6 {[%clk 0:00:04]} 51. Rb6+ {[%clk 0:00:11]}  Kg5 {[%clk 0:00:04]} 52. Rf6 {[%clk 0:00:11]}  Ra3+ {[%clk 0:00:04]} 53. Kg2 {[%clk 0:00:11]}  Ra7 {[%clk 0:00:04]} 54. Kg3 {[%clk 0:00:11]}  Re7 {[%clk 0:00:04]} 55. Kg2 {[%clk 0:00:11]}  h5 {[%clk 0:00:05]} 56. Kg3 {[%clk 0:00:11]}  h4+ {[%clk 0:00:05]} 57. Kh3 {[%clk 0:00:11]}  Ra7 {[%clk 0:00:05]} 58. Rf3 {[%clk 0:00:10]}  Ra5 {[%clk 0:00:04]} 59. Rxf7 {[%clk 0:00:10]}  Rxe5 {[%clk 0:00:05]} 60. Rf3 {[%clk 0:00:10]}  Re4 {[%clk 0:00:05]} 61. Rd3 {[%clk 0:00:10]}  Rf4 {[%clk 0:00:05]} 62. Rc3 {[%clk 0:00:10]}  Rf5 {[%clk 0:00:06]} 63. Rd3 {[%clk 0:00:10]}  Kh5 {[%clk 0:00:07]} 64. Rc3 {[%clk 0:00:11]}  Rg5 {[%clk 0:00:07]} 65. Rd3 {[%clk 0:00:11]}  Rg3+ {[%clk 0:00:08]} 66. Rxg3 {[%clk 0:00:11]}  hxg3 {[%clk 0:00:09]} 67. Kxg3 {[%clk 0:00:12]} 1/2-1/2

[Event "January 2 Late 2024"]
[Site "https://www.chess.com"]
[Date "2024.01.02"]
[Round "2"]
[White "Zarubitski, Viachaslau"]
[Black "Kujawski, Adam"]
[Result "1-0"]
[Board "97"]
[TimeControl "180+1"]
[WhiteFideId "13509373"]
[BlackFideId "1100920"]
[WhiteElo "2713"]
[BlackElo "2329"]
[WhiteTeam "BLR"]
[BlackTeam "POL"]
[WhiteClock "0:00:08"]
[BlackClock "0:00:02"]

1. b3 {[%clk 0:02:58]}  e5 {[%clk 0:02:57]} 2. Bb2 {[%clk 0:02:58]}  Nc6 {[%clk 0:02:57]} 3. e3 {[%clk 0:02:58]}  d5 {[%clk 0:02:57]} 4. Bb5 {[%clk 0:02:58]}  Bd6 {[%clk 0:02:56]} 5. Nf3 {[%clk 0:02:58]}  Qe7 {[%clk 0:02:44]} 6. d4 {[%clk 0:02:53]}  exd4 {[%clk 0:02:21]} 7. Nxd4 {[%clk 0:02:41]}  Bd7 {[%clk 0:02:20]} 8. Qf3 {[%clk 0:02:31]}  Be5 {[%clk 0:01:30]} 9. O-O {[%clk 0:01:43]}  Nf6 {[%clk 0:01:26]} 10. Nc3 {[%clk 0:01:38]}  Bxd4 {[%clk 0:00:50]} 11. Bxc6 {[%clk 0:01:00]}  Bxc6 {[%clk 0:00:42]} 12. exd4 {[%clk 0:01:01]}  O-O-O {[%clk 0:00:41]} 13. Rfe1 {[%clk 0:00:58]}  Qd7 {[%clk 0:00:36]} 14. a4 {[%clk 0:00:53]}  Rhe8 {[%clk 0:00:33]} 15. Re5 {[%clk 0:00:51]}  Rxe5 {[%clk 0:00:26]} 16. dxe5 {[%clk 0:00:47]}  d4 {[%clk 0:00:26]} 17. Qe2 {[%clk 0:00:25]}  dxc3 {[%clk 0:00:26]} 18. Bxc3 {[%clk 0:00:26]}  Ne4 {[%clk 0:00:25]} 19. Be1 {[%clk 0:00:25]}  Qd5 {[%clk 0:00:25]} 20. f3 {[%clk 0:00:24]}  Ng5 {[%clk 0:00:21]} 21. Bf2 {[%clk 0:00:20]}  Ne6 {[%clk 0:00:20]} 22. Re1 {[%clk 0:00:09]}  a6 {[%clk 0:00:20]} 23. h4 {[%clk 0:00:08]}  Qd2 {[%clk 0:00:20]} 24. Qc4 {[%clk 0:00:08]}  Bd5 {[%clk 0:00:09]} 25. Qg4 {[%clk 0:00:07]}  g6 {[%clk 0:00:08]} 26. h5 {[%clk 0:00:08]}  Qxc2 {[%clk 0:00:04]} 27. hxg6 {[%clk 0:00:08]}  hxg6 {[%clk 0:00:05]} 28. b4 {[%clk 0:00:08]}  Qxa4 {[%clk 0:00:05]} 29. Qh3 {[%clk 0:00:07]}  Qb5 {[%clk 0:00:05]} 30. Qh7 {[%clk 0:00:07]}  Nf4 {[%clk 0:00:03]} 31. Qxf7 {[%clk 0:00:07]}  Ne2+ {[%clk 0:00:03]} 32. Rxe2 {[%clk 0:00:06]}  Qxe2 {[%clk 0:00:03]} 33. Qxg6 {[%clk 0:00:07]}  Qd1+ {[%clk 0:00:02]} 34. Kh2 {[%clk 0:00:07]}  Rh8+ {[%clk 0:00:02]} 35. Kg3 {[%clk 0:00:08]}  Qd3 {[%clk 0:00:02]} 36. Qxd3 {[%clk 0:00:08]}  Bc6 {[%clk 0:00:02]} 37. Kf4 {[%clk 0:00:08]}  Rg8 {[%clk 0:00:03]} 38. Ke3 {[%clk 0:00:09]}  Rf8 {[%clk 0:00:04]} 39. f4 {[%clk 0:00:08]}  Re8 {[%clk 0:00:04]} 40. g4 {[%clk 0:00:08]}  Rd8 {[%clk 0:00:05]} 41. Qf5+ {[%clk 0:00:08]}  Kb8 {[%clk 0:00:04]} 42. g5 {[%clk 0:00:08]}  Rd5 {[%clk 0:00:02]} 43. g6 {[%clk 0:00:08]} 1-0

[Event "January 2 Late 2024"]
[Site "https://www.chess.com"]
[Date "2024.01.02"]
[Round "2"]
[White "Hamidi, Amir Mohammad"]
[Black "Copeland, Samuel"]
[Result "1-0"]
[Board "99"]
[TimeControl "180+1"]
[WhiteFideId "12563285"]
[BlackFideId "2007347"]
[WhiteElo "2710"]
[BlackElo "2307"]
[WhiteTeam "IRI"]
[BlackTeam "USA"]
[WhiteClock "0:00:14"]
[BlackClock "0:00:12"]

1. Nf3 {[%clk 0:03:00]}  d5 {[%clk 0:02:53]} 2. c4 {[%clk 0:03:01]}  c6 {[%clk 0:02:50]} 3. g3 {[%clk 0:03:01]}  Nf6 {[%clk 0:02:47]} 4. Bg2 {[%clk 0:03:02]}  dxc4 {[%clk 0:02:46]} 5. Na3 {[%clk 0:03:00]}  Be6 {[%clk 0:02:45]} 6. Ng5 {[%clk 0:02:56]}  Qd7 {[%clk 0:02:28]} 7. Nxe6 {[%clk 0:02:34]}  Qxe6 {[%clk 0:02:29]} 8. Qc2 {[%clk 0:02:35]}  Na6 {[%clk 0:02:14]} 9. Qxc4 {[%clk 0:01:54]}  Qxc4 {[%clk 0:02:08]} 10. Nxc4 {[%clk 0:01:53]}  Nb4 {[%clk 0:02:08]} 11. O-O {[%clk 0:01:49]}  e6 {[%clk 0:02:05]} 12. a3 {[%clk 0:01:46]}  Nc2 {[%clk 0:01:59]} 13. Rb1 {[%clk 0:01:44]}  Nd4 {[%clk 0:01:57]} 14. e3 {[%clk 0:01:39]}  Ne2+ {[%clk 0:01:56]} 15. Kh1 {[%clk 0:01:39]}  Be7 {[%clk 0:01:45]} 16. Na5 {[%clk 0:01:34]}  O-O-O {[%clk 0:01:41]} 17. d4 {[%clk 0:01:29]}  Nxc1 {[%clk 0:01:39]} 18. Rfxc1 {[%clk 0:01:30]}  Kb8 {[%clk 0:01:31]} 19. Bxc6 {[%clk 0:01:24]}  Rc8 {[%clk 0:01:07]} 20. Bf3 {[%clk 0:00:54]}  Nd5 {[%clk 0:00:59]} 21. Bxd5 {[%clk 0:00:51]}  exd5 {[%clk 0:00:59]} 22. b4 {[%clk 0:00:51]}  h5 {[%clk 0:00:53]} 23. h3 {[%clk 0:00:42]}  g5 {[%clk 0:00:51]} 24. Kg2 {[%clk 0:00:40]}  f5 {[%clk 0:00:49]} 25. Nb3 {[%clk 0:00:38]}  b6 {[%clk 0:00:49]} 26. Rxc8+ {[%clk 0:00:35]}  Rxc8 {[%clk 0:00:48]} 27. Rc1 {[%clk 0:00:35]}  Rc4 {[%clk 0:00:39]} 28. Rxc4 {[%clk 0:00:30]}  dxc4 {[%clk 0:00:38]} 29. Nc1 {[%clk 0:00:30]}  a5 {[%clk 0:00:37]} 30. bxa5 {[%clk 0:00:28]}  Bxa3 {[%clk 0:00:35]} 31. Ne2 {[%clk 0:00:29]}  b5 {[%clk 0:00:33]} 32. g4 {[%clk 0:00:26]}  hxg4 {[%clk 0:00:32]} 33. hxg4 {[%clk 0:00:26]}  fxg4 {[%clk 0:00:30]} 34. e4 {[%clk 0:00:24]}  b4 {[%clk 0:00:30]} 35. e5 {[%clk 0:00:24]}  c3 {[%clk 0:00:27]} 36. e6 {[%clk 0:00:20]}  Kc7 {[%clk 0:00:25]} 37. a6 {[%clk 0:00:19]}  c2 {[%clk 0:00:19]} 38. e7 {[%clk 0:00:16]}  Kd7 {[%clk 0:00:18]} 39. a7 {[%clk 0:00:16]}  b3 {[%clk 0:00:17]} 40. a8=Q {[%clk 0:00:15]}  Bxe7 {[%clk 0:00:15]} 41. Qb7+ {[%clk 0:00:14]}  Ke6 {[%clk 0:00:12]} 42. Qxb3+ {[%clk 0:00:14]} 1-0

[Event "January 2 Late 2024"]
[Site "https://www.chess.com"]
[Date "2024.01.02"]
[Round "2"]
[White "rumo_a_3200"]
[Black "Onyshchuk, Volodymyr"]
[Result "0-1"]
[Board "101"]
[TimeControl "180+1"]
[BlackFideId "14114038"]
[WhiteElo "2287"]
[BlackElo "2705"]
[BlackTeam "UKR"]
[WhiteClock "0:00:02"]
[BlackClock "0:01:58"]

1. e4 {[%clk 0:02:58]}  d6 {[%clk 0:02:58]} 2. d4 {[%clk 0:02:58]}  Nf6 {[%clk 0:02:59]} 3. Nc3 {[%clk 0:02:58]}  g6 {[%clk 0:02:59]} 4. Nf3 {[%clk 0:02:59]}  Bg7 {[%clk 0:03:00]} 5. Be2 {[%clk 0:03:00]}  O-O {[%clk 0:03:00]} 6. O-O {[%clk 0:03:00]}  a6 {[%clk 0:03:00]} 7. a4 {[%clk 0:02:59]}  Nc6 {[%clk 0:03:00]} 8. d5 {[%clk 0:02:59]}  Nb4 {[%clk 0:02:53]} 9. Re1 {[%clk 0:02:47]}  e6 {[%clk 0:02:52]} 10. dxe6 {[%clk 0:02:44]}  Bxe6 {[%clk 0:02:51]} 11. Bg5 {[%clk 0:02:22]}  h6 {[%clk 0:02:50]} 12. Bh4 {[%clk 0:02:22]}  g5 {[%clk 0:02:37]} 13. Bg3 {[%clk 0:02:21]}  Nh5 {[%clk 0:02:38]} 14. Nd4 {[%clk 0:02:05]}  Nxg3 {[%clk 0:02:37]} 15. hxg3 {[%clk 0:02:04]}  Bxd4 {[%clk 0:02:37]} 16. Qxd4 {[%clk 0:02:04]}  Nxc2 {[%clk 0:02:38]} 17. Qd2 {[%clk 0:01:59]}  Nxa1 {[%clk 0:02:37]} 18. Rxa1 {[%clk 0:02:00]}  Qf6 {[%clk 0:02:31]} 19. Rc1 {[%clk 0:01:53]}  Rad8 {[%clk 0:02:27]} 20. Nd5 {[%clk 0:01:49]}  Bxd5 {[%clk 0:02:26]} 21. exd5 {[%clk 0:01:50]}  Rd7 {[%clk 0:02:24]} 22. Bg4 {[%clk 0:01:50]}  Re7 {[%clk 0:02:24]} 23. Rc3 {[%clk 0:01:44]}  Rfe8 {[%clk 0:02:19]} 24. Rf3 {[%clk 0:01:37]}  Qg6 {[%clk 0:02:19]} 25. Kh2 {[%clk 0:00:49]}  Re1 {[%clk 0:02:12]} 26. Rf5 {[%clk 0:00:02]}  Ra1 {[%clk 0:01:58]} 0-1